[Event "Turkish Second League 2019"]
[Site "Konya"]
[Date "2019.07.22"]
[Round "1"]
[White "Gozebe, Soner"]
[Black "Ozturk, Emir"]
[Result "0-1"]
[ECO "A42"]
[WhiteElo "1656"]
[BlackElo "2216"]
[Annotator "NA"]
[PlyCount "76"]
[EventDate "2019.07.22"]
[EventType "team-tourn"]
[EventCountry "TUR"]
[SourceTitle "playchess.com"]
[Source "ChessBase"]
[SourceQuality "1"]
[TimeControl "5400+30"]

1. e4 {[%emt 0:00:30]} g6 {[%emt 0:00:30]} 2. d4 {[%emt 0:00:30]} Bg7 {[%emt 0:00:00]} 3. c4 {[%emt 0:00:00]} d6 {[%emt 0:00:00]} 4. Nc3 {[%emt 0:00:00]} Nd7 {[%emt 0:01:30]} 5. Be3 {[%emt 0:08:30]} e5 {[%emt 0:00:30]} 6. Nge2 {[%emt 0:02:30]} Nh6 {[%emt 0:17:30]} 7. f3 {[%emt 0:06:30]} f5 {[%emt 0:01:30]} 8. Qd2 {[%emt 0:01:30]} Nf7 {[%emt 0:02:30]} 9. exf5 {[%emt 0:03:30]} gxf5 {[%emt 0:00:30]} 10. f4 {[%emt 0:00:30]} Nb6 {[%emt 0:16:30]} 11. b3 {[%emt 0:10:30]} O-O {[%emt 0:07:30]} 12. a4 {[%emt 0:07:30]} Nd7 {[%emt 0:04:30]} 13. dxe5 {[%emt 0:11:30]} dxe5 {[%emt 0:00:30]} 14. O-O-O {[%emt 0:00:30]} c6 {[%emt 0:02:30]} 15. Ng3 {[%emt 0:08:30]} exf4 {[%emt 0:09:30]} 16. Bxf4 {[%emt 0:01:30]} Qf6 {[%emt 0:00:30]} 17. Kc2 {[%emt 0:01:30]} Nc5 {[%emt 0:01:30]} 18. Be3 {[%emt 0:03:30]} Rd8 {[%emt 0:06:30]} 19. Qe1 {[%emt 0:00:30]} Rxd1 {[%emt 0:01:30]} 20. Nxd1 {[%emt 0:00:30]} Qe7 {[%emt 0:07:33]} 21. Qf2 {[%emt 0:10:30]} Ne4 {[%emt 0:03:19]} 22. Nxe4 {[%emt 0:04:32]} fxe4 {[%emt 0:00:05]} 23. Bd4 {[%emt 0:01:26]} Ne5 {[%emt 0:00:12]} 24. Qg3 {[%emt 0:00:51]} Bf5 {[%emt 0:05:03]} 25. Ne3 {[%emt 0:03:51]} Bg6 {[%emt 0:00:04]} 26. Be2 {[%emt 0:01:59]} Nd3 {[%emt 0:00:30]} 27. Bxg7 {[%emt 0:00:30]} Qxg7 {[%emt 0:01:05]} 28. Rb1 {[%emt 0:01:40]} Nb4+ {[%emt 0:02:12]} 29. Kd2 {[%emt 0:00:12]} Qd4+ {[%emt 0:00:47]} 30. Ke1 {[%emt 0:00:07]} Rf8 {[%emt 0:00:57]} 31. Rc1 {[%emt 0:01:25]} Qb2 {[%emt 0:00:41]} 32. Rd1 {[%emt 0:00:51]} Qc3+ {[%emt 0:01:49]} 33. Rd2 {[%emt 0:00:01]} Rd8 {[%emt 0:00:05]} 34. Nf1 {[%emt 0:00:25]} e3 {[%emt 0:01:49]} 35. Qxe3 {[%emt 0:00:55]} Nc2+ {[%emt 0:00:07]} 36. Kf2 {[%emt 0:00:00]} Rf8+ {[%emt 0:00:20]} 37. Qf3 {[%emt 0:00:14]} Rxf3+ {[%emt 0:00:10]} 38. Bxf3 {[%emt 0:00:14]} Bd3 {[%emt 0:00:18]} 0-1

[Event "Turkish Second League 2019"]
[Site "Konya"]
[Date "2019.07.22"]
[Round "1"]
[White "Nesanir, Selin"]
[Black "Inac, Fatma Yaren"]
[Result "1-0"]
[ECO "B06"]
[WhiteElo "1622"]
[BlackElo "1032"]
[Annotator "NA"]
[PlyCount "69"]
[EventDate "2019.07.22"]
[EventType "team-tourn"]
[EventCountry "TUR"]
[SourceTitle "playchess.com"]
[Source "ChessBase"]
[SourceQuality "1"]
[TimeControl "5400+30"]

1. e4 {[%emt 0:00:30]} g6 {[%emt 0:00:30]} 2. d4 {[%emt 0:00:30]} Bg7 {[%emt 0:00:00]} 3. Nc3 {[%emt 0:00:30]} e6 {[%emt 0:00:00]} 4. Nf3 {[%emt 0:00:30]} Ne7 {[%emt 0:01:30]} 5. Bf4 {[%emt 0:03:30]} O-O {[%emt 0:02:30]} 6. Qd2 {[%emt 0:00:30]} Re8 {[%emt 0:03:30]} 7. Bh6 {[%emt 0:03:30]} Bh8 {[%emt 0:03:30]} 8. g4 {[%emt 0:09:30]} d5 {[%emt 0:06:30]} 9. e5 {[%emt 0:01:30]} Nd7 {[%emt 0:05:30]} 10. Ng5 {[%emt 0:05:30]} Nc6 {[%emt 0:04:30]} 11. f4 {[%emt 0:05:30]} f6 {[%emt 0:10:30]} 12. Nf3 {[%emt 0:02:30]} Nb6 {[%emt 0:08:30]} 13. h4 {[%emt 0:03:30]} Re7 {[%emt 0:06:30]} 14. h5 {[%emt 0:04:30]} Bg7 {[%emt 0:05:30]} 15. hxg6 {[%emt 0:02:30]} hxg6 {[%emt 0:03:30]} 16. Qh2 {[%emt 0:05:30]} Qf8 {[%emt 0:07:30]} 17. exf6 {[%emt 0:07:30]} Qxf6 {[%emt 0:06:30]} 18. Bg5 {[%emt 0:01:30]} Qf8 {[%emt 0:02:30]} 19. Bxe7 {[%emt 0:05:30]} Qxe7 {[%emt 0:00:30]} 20. O-O-O {[%emt 0:00:30]} Bd7 {[%emt 0:03:18]} 21. Qh7+ {[%emt 0:04:30]} Kf8 {[%emt 0:04:13]} 22. Qxg6 {[%emt 0:02:30]} Be8 {[%emt 0:04:37]} 23. Qd3 {[%emt 0:00:30]} Qf6 {[%emt 0:01:58]} 24. Qd2 {[%emt 0:01:30]} Bg6 {[%emt 0:01:23]} 25. Ne5 {[%emt 0:01:30]} Nxe5 {[%emt 0:01:47]} 26. fxe5 {[%emt 0:01:30]} Qf7 {[%emt 0:02:18]} 27. Be2 {[%emt 0:02:30]} Ke7 {[%emt 0:00:38]} 28. Rdf1 {[%emt 0:00:30]} Qe8 {[%emt 0:01:05]} 29. Qg5+ {[%emt 0:01:30]} Kd7 {[%emt 0:00:24]} 30. Bd3 {[%emt 0:00:30]} Bf7 {[%emt 0:01:44]} 31. Qxg7 {[%emt 0:00:30]} Nc8 {[%emt 0:00:30]} 32. Rxf7+ {[%emt 0:00:30]} Ne7 {[%emt 0:00:30]} 33. Rh7 {[%emt 0:00:30]} Rd8 {[%emt 0:00:56]} 34. Rxe7+ {[%emt 0:00:30]} Qxe7 {[%emt 0:00:30]} 35. Qxe7+ {[%emt 0:00:00]} 1-0

[Event "Turkish Second League 2019"]
[Site "Konya"]
[Date "2019.07.22"]
[Round "1"]
[White "Arslan, Muhammed Emin"]
[Black "Akdag, Omer Amir"]
[Result "0-1"]
[ECO "A24"]
[WhiteElo "1529"]
[BlackElo "1903"]
[Annotator "NA"]
[PlyCount "104"]
[EventDate "2019.07.22"]
[EventType "team-tourn"]
[EventCountry "TUR"]
[SourceTitle "playchess.com"]
[Source "ChessBase"]
[SourceQuality "1"]
[TimeControl "5400+30"]

1. c4 {[%emt 0:00:30]} Nf6 {[%emt 0:00:30]} 2. Nc3 {[%emt 0:00:30]} g6 {[%emt 0:00:30]} 3. g3 {[%emt 0:00:00]} Bg7 {[%emt 0:00:00]} 4. Bg2 {[%emt 0:00:00]} O-O {[%emt 0:00:00]} 5. e4 {[%emt 0:00:30]} d6 {[%emt 0:00:00]} 6. Nge2 {[%emt 0:00:00]} Nbd7 {[%emt 0:00:00]} 7. O-O {[%emt 0:03:00]} e5 {[%emt 0:02:30]} 8. d3 {[%emt 0:00:30]} a5 {[%emt 0:03:30]} 9. h3 {[%emt 0:02:30]} Nc5 {[%emt 0:00:30]} 10. Be3 {[%emt 0:02:30]} Nfd7 {[%emt 0:01:30]} 11. Qd2 {[%emt 0:06:30]} Ne6 {[%emt 0:15:30]} 12. d4 {[%emt 0:09:30]} exd4 {[%emt 0:01:30]} 13. Nxd4 {[%emt 0:00:00]} Ne5 {[%emt 0:00:30]} 14. b3 {[%emt 0:10:00]} Nxd4 {[%emt 0:07:30]} 15. Bxd4 {[%emt 0:00:30]} Qf6 {[%emt 0:00:30]} 16. f4 {[%emt 0:07:30]} Nf3+ {[%emt 0:03:30]} 17. Rxf3 {[%emt 0:01:30]} Qxd4+ {[%emt 0:00:00]} 18. Qxd4 {[%emt 0:00:30]} Bxd4+ {[%emt 0:00:00]} 19. Kh2 {[%emt 0:10:30]} a4 {[%emt 0:07:30]} 20. b4 {[%emt 0:00:30]} Be6 {[%emt 0:01:30]} 21. Rd1 {[%emt 0:01:30]} c5 {[%emt 0:03:30]} 22. Nd5 {[%emt 0:06:30]} Bxd5 {[%emt 0:00:30]} 23. cxd5 {[%emt 0:00:30]} Rfe8 {[%emt 0:00:30]} 24. Rfd3 {[%emt 0:03:30]} f6 {[%emt 0:00:30]} 25. Rb1 {[%emt 0:06:30]} b6 {[%emt 0:02:30]} 26. g4 {[%emt 0:02:30]} g5 {[%emt 0:04:30]} 27. Kg3 {[%emt 0:01:30]} a3 {[%emt 0:00:30]} 28. bxc5 {[%emt 0:05:31]} bxc5 {[%emt 0:01:30]} 29. Rb6 {[%emt 0:06:27]} Reb8 {[%emt 0:01:30]} 30. Rdb3 {[%emt 0:05:17]} Rxb6 {[%emt 0:05:30]} 31. Rxb6 {[%emt 0:00:02]} gxf4+ {[%emt 0:03:30]} 32. Kxf4 {[%emt 0:00:04]} c4 {[%emt 0:00:30]} 33. Rc6 {[%emt 0:05:18]} c3 {[%emt 0:01:30]} 34. Rc4 {[%emt 0:02:04]} Be5+ {[%emt 0:00:30]} 35. Kf5 {[%emt 0:00:37]} Rb8 {[%emt 0:00:00]} 36. Bf1 {[%emt 0:01:24]} Rb2 {[%emt 0:01:00]} 37. Rc8+ {[%emt 0:00:42]} Kg7 {[%emt 0:00:00]} 38. Rc7+ {[%emt 0:00:04]} Kf8 {[%emt 0:00:00]} 39. Bc4 {[%emt 0:00:45]} c2 {[%emt 0:00:30]} 40. Bd3 {[%emt 0:01:54]} Rxa2 {[%emt 0:00:30]} 41. Bxc2 {[%emt 0:00:30]} Rb2 {[%emt 0:00:30]} 42. Ke6 {[%emt 0:00:30]} a2 {[%emt 0:00:30]} 43. Rf7+ {[%emt 0:00:20]} Kg8 {[%emt 0:00:30]} 44. h4 {[%emt 0:00:30]} a1=Q {[%emt 0:00:30]} 45. Re7 {[%emt 0:00:27]} Qg1 {[%emt 0:00:30]} 46. Re8+ {[%emt 0:00:30]} Kg7 {[%emt 0:00:30]} 47. Re7+ {[%emt 0:00:33]} Kh6 {[%emt 0:00:30]} 48. Bd1 {[%emt 0:00:29]} Qxd1 {[%emt 0:00:30]} 49. g5+ {[%emt 0:00:30]} Kg6 {[%emt 0:00:00]} 50. h5+ {[%emt 0:00:52]} Qxh5 {[%emt 0:00:00]} 51. Rxh7 {[%emt 0:00:08]} Qxh7 {[%emt 0:00:00]} 52. gxf6 {[%emt 0:00:37]} Qf7# {[%emt 0:00:00]} 0-1

[Event "Turkish Second League 2019"]
[Site "Konya"]
[Date "2019.07.22"]
[Round "1"]
[White "Koca, Cisem"]
[Black "Yesil, Azra"]
[Result "1-0"]
[ECO "B13"]
[WhiteElo "1526"]
[BlackElo "1299"]
[Annotator "NA"]
[PlyCount "111"]
[EventDate "2019.07.22"]
[EventType "team-tourn"]
[EventCountry "TUR"]
[SourceTitle "playchess.com"]
[Source "ChessBase"]
[SourceQuality "1"]
[TimeControl "5400+30"]

1. e4 c6 2. d4 d5 3. exd5 cxd5 4. Bd3 Nc6 5. c3 Nf6 6. h3 e5 7. dxe5 Nxe5 8. Qe2 Qe7 9. Bc2 Nc4 10. Qxe7+ Bxe7 11. Nf3 O-O 12. Nbd2 a6 13. Nd4 Nxd2 14. Bxd2 Bc5 15. Be3 Bxd4 16. Bxd4 Re8+ 17. Be3 Bd7 18. O-O-O Bc6 19. Bb3 h6 20. Rhe1 Rad8 21. f3 b5 22. Bd4 Rxe1 23. Rxe1 Re8 24. Rxe8+ Nxe8 25. Be5 f6 26. Bb8 Kf7 27. Kd2 Ke6 28. Ke3 Nd6 29. Bxd6 Kxd6 30. Kd4 g5 31. g3 Bb7 32. h4 Bc6 33. a3 Bb7 34. Ba2 a5 35. b4 a4 36. f4 gxh4 37. gxh4 Bc6 38. Bb1 Bd7 39. Bd3 f5 40. Be2 Bc6 41. Bh5 Bd7 42. Bg6 Bc8 43. Be8 Ba6 44. h5 Ke7 45. Bg6 Kd6 46. Bxf5 Bb7 47. Bg6 Bc6 48. Bf7 Bb7 49. Be8 Ba6 50. f5 Ke7 51. Bc6 Kf6 52. Bd7 Kg5 53. Kxd5 Kxh5 54. f6 Kg6 55. Ke6 Bb7 56. f7 1-0

[Event "Turkish Second League 2019"]
[Site "Konya"]
[Date "2019.07.22"]
[Round "1"]
[White "Kangal, Mehmet"]
[Black "Ozenir, Ekin Baris"]
[Result "0-1"]
[ECO "B00"]
[WhiteElo "1508"]
[BlackElo "2235"]
[Annotator "NA"]
[PlyCount "55"]
[EventDate "2019.07.22"]
[EventType "team-tourn"]
[EventCountry "TUR"]
[SourceTitle "playchess.com"]
[Source "ChessBase"]
[SourceQuality "1"]
[TimeControl "5400+30"]

1. e4 {[%emt 0:00:30]} Nc6 {[%emt 0:00:30]} 2. d4 {[%emt 0:02:30]} d5 {[%emt 0:00:30]} 3. e5 {[%emt 0:05:30]} Bf5 {[%emt 0:00:30]} 4. Bb5 {[%emt 0:00:30]} e6 {[%emt 0:00:30]} 5. Be3 {[%emt 0:04:30]} Nge7 {[%emt 0:01:30]} 6. Ne2 {[%emt 0:10:30]} a6 {[%emt 0:03:30]} 7. Bd3 {[%emt 0:05:30]} Bxd3 {[%emt 0:05:30]} 8. Qxd3 {[%emt 0:00:30]} Nf5 {[%emt 0:00:00]} 9. c3 {[%emt 0:05:30]} Nb8 {[%emt 0:20:00]} 10. Nd2 {[%emt 0:07:30]} c5 {[%emt 0:04:30]} 11. b3 {[%emt 0:15:30]} Nc6 {[%emt 0:01:30]} 12. a3 {[%emt 0:05:30]} Rc8 {[%emt 0:08:30]} 13. f4 {[%emt 0:05:30]} cxd4 {[%emt 0:04:30]} 14. Bxd4 {[%emt 0:08:34]} Nfxd4 {[%emt 0:01:30]} 15. Nxd4 {[%emt 0:05:39]} Nxd4 {[%emt 0:01:30]} 16. cxd4 {[%emt 0:07:53]} Bxa3 {[%emt 0:04:30]} 17. O-O {[%emt 0:01:04]} Be7 {[%emt 0:03:30]} 18. f5 {[%emt 0:02:17]} exf5 {[%emt 0:03:30]} 19. Qxf5 {[%emt 0:01:55]} O-O {[%emt 0:00:30]} 20. Rae1 {[%emt 0:01:30]} Qb6 {[%emt 0:06:30]} 21. Qf4 {[%emt 0:01:28]} Qg6 {[%emt 0:03:30]} 22. Nf3 {[%emt 0:00:19]} Rc2 {[%emt 0:01:30]} 23. g3 {[%emt 0:00:44]} Qe6 {[%emt 0:01:30]} 24. Rf2 {[%emt 0:00:28]} Rxf2 {[%emt 0:02:30]} 25. Kxf2 {[%emt 0:00:01]} Rc8 {[%emt 0:00:30]} 26. Rc1 {[%emt 0:00:03]} h6 {[%emt 0:01:00]} 27. Qd2 {[%emt 0:00:30]} Rc6 {[%emt 0:00:30]} 28. Ng1 {[%emt 0:00:30]} 0-1

[Event "Turkish Second League 2019"]
[Site "Konya"]
[Date "2019.07.22"]
[Round "1"]
[White "Kaya, Elif"]
[Black "Catal, Uktenur"]
[Result "0-1"]
[ECO "C01"]
[WhiteElo "1276"]
[BlackElo "1885"]
[Annotator "NA"]
[PlyCount "60"]
[EventDate "2019.07.22"]
[EventType "team-tourn"]
[EventCountry "TUR"]
[SourceTitle "playchess.com"]
[Source "ChessBase"]
[SourceQuality "1"]
[TimeControl "5400+30"]

1. e4 {[%emt 0:00:30]} e6 {[%emt 0:00:30]} 2. d4 {[%emt 0:00:00]} d5 {[%emt 0:00:30]} 3. exd5 {[%emt 0:00:00]} exd5 {[%emt 0:00:30]} 4. Bd3 {[%emt 0:00:00]} Bd6 {[%emt 0:00:00]} 5. Nc3 {[%emt 0:00:00]} Nf6 {[%emt 0:04:00]} 6. Nge2 {[%emt 0:00:30]} O-O {[%emt 0:01:30]} 7. h3 {[%emt 0:03:30]} c6 {[%emt 0:03:30]} 8. Be3 {[%emt 0:04:30]} Re8 {[%emt 0:00:30]} 9. Qd2 {[%emt 0:03:30]} Nbd7 {[%emt 0:02:30]} 10. g4 {[%emt 0:31:30]} Ne4 {[%emt 0:02:30]} 11. Nxe4 {[%emt 0:06:30]} dxe4 {[%emt 0:00:30]} 12. Bc4 {[%emt 0:00:30]} Nb6 {[%emt 0:00:00]} 13. Bb3 {[%emt 0:00:30]} a5 {[%emt 0:08:00]} 14. c3 {[%emt 0:03:30]} a4 {[%emt 0:00:30]} 15. Bc2 {[%emt 0:00:30]} Nc4 {[%emt 0:00:00]} 16. Qc1 {[%emt 0:00:30]} b5 {[%emt 0:04:00]} 17. g5 {[%emt 0:18:30]} b4 {[%emt 0:26:30]} 18. h4 {[%emt 0:06:57]} bxc3 {[%emt 0:00:30]} 19. Nxc3 {[%emt 0:00:18]} a3 {[%emt 0:00:30]} 20. bxa3 {[%emt 0:07:19]} Bxa3 {[%emt 0:00:30]} 21. Qb1 {[%emt 0:06:58]} Qa5 {[%emt 0:05:30]} 22. Qb3 {[%emt 0:01:27]} Be6 {[%emt 0:00:30]} 23. d5 {[%emt 0:01:16]} Bxd5 {[%emt 0:00:00]} 24. Qb1 {[%emt 0:01:30]} Qxc3+ {[%emt 0:00:00]} 25. Ke2 {[%emt 0:00:33]} Nxe3 {[%emt 0:00:30]} 26. fxe3 {[%emt 0:00:05]} Bc4+ {[%emt 0:00:00]} 27. Kf2 {[%emt 0:00:53]} Qd2+ {[%emt 0:00:00]} 28. Kg3 {[%emt 0:00:30]} Qxe3+ {[%emt 0:00:30]} 29. Kg2 {[%emt 0:00:07]} Qf3+ {[%emt 0:00:00]} 30. Kh2 {[%emt 0:00:03]} Qf2+ {[%emt 0:00:00]} 0-1

[Event "Turkish Second League 2019"]
[Site "Konya"]
[Date "2019.07.23"]
[Round "2"]
[White "Zarkua, Davit"]
[Black "Bashirli, Nail"]
[Result "0-1"]
[ECO "D02"]
[WhiteElo "2440"]
[BlackElo "2367"]
[Annotator "ChessBase"]
[PlyCount "172"]
[EventDate "2019.07.22"]
[EventType "team-tourn"]
[EventCountry "TUR"]
[SourceTitle "playchess.com"]
[Source "ChessBase"]
[SourceQuality "1"]
[TimeControl "5400+30"]

1. Nf3 {[%emt 0:00:30]} Nf6 {[%emt 0:00:30]} 2. g3 {[%emt 0:00:30]} d5 {[%emt 0:00:30]} 3. Bg2 {[%emt 0:00:30]} c6 {[%emt 0:00:30]} 4. O-O {[%emt 0:01:30]} Bg4 {[%emt 0:00:30]} 5. d4 {[%emt 0:00:30]} Nbd7 {[%emt 0:00:00]} 6. Nbd2 {[%emt 0:01:30]} e6 {[%emt 0:00:00]} 7. Re1 {[%emt 0:00:30]} Be7 {[%emt 0:00:00]} 8. e4 {[%emt 0:00:30]} O-O {[%emt 0:00:00]} 9. c3 {[%emt 0:00:30]} h6 {[%emt 0:02:30]} 10. Qb3 {[%emt 0:06:30]} Qb6 {[%emt 0:09:30]} 11. h3 {[%emt 0:08:30]} Bh5 {[%emt 0:02:30]} 12. exd5 {[%emt 0:01:30]} cxd5 {[%emt 0:02:30]} 13. Qxb6 {[%emt 0:01:30]} axb6 {[%emt 0:00:30]} 14. Bf1 {[%emt 0:06:30]} Bg6 {[%emt 0:03:30]} 15. a4 {[%emt 0:07:30]} Bd6 {[%emt 0:03:30]} 16. b3 {[%emt 0:02:30]} Ne4 {[%emt 0:04:30]} 17. Nxe4 {[%emt 0:01:30]} Bxe4 {[%emt 0:02:30]} 18. Nd2 {[%emt 0:00:30]} Bf5 {[%emt 0:01:30]} 19. Ba3 {[%emt 0:05:30]} Bxa3 {[%emt 0:00:30]} 20. Rxa3 {[%emt 0:00:00]} Rfc8 {[%emt 0:00:30]} 21. Re3 {[%emt 0:00:00]} Rc7 {[%emt 0:00:00]} 22. g4 {[%emt 0:04:30]} Bg6 {[%emt 0:06:00]} 23. Ra1 {[%emt 0:07:30]} Rac8 {[%emt 0:00:30]} 24. Rc1 {[%emt 0:01:30]} e5 {[%emt 0:03:30]} 25. Nf3 {[%emt 0:00:30]} e4 {[%emt 0:00:30]} 26. Nd2 {[%emt 0:03:30]} Nf8 {[%emt 0:08:30]} 27. f3 {[%emt 0:01:30]} exf3 {[%emt 0:00:30]} 28. Nxf3 {[%emt 0:00:30]} Ne6 {[%emt 0:00:00]} 29. c4 {[%emt 0:14:30]} Be4 {[%emt 0:06:00]} 30. Rd1 {[%emt 0:00:30]} g5 {[%emt 0:01:30]} 31. Ne5 {[%emt 0:02:30]} Rd8 {[%emt 0:07:30]} 32. cxd5 {[%emt 0:04:10]} Bxd5 {[%emt 0:00:30]} 33. Nc4 {[%emt 0:04:35]} Bxc4 {[%emt 0:00:30]} 34. Bxc4 {[%emt 0:00:13]} Nxd4 {[%emt 0:01:30]} 35. Kf2 {[%emt 0:03:18]} Kg7 {[%emt 0:00:00]} 36. Red3 {[%emt 0:01:11]} Rcd7 {[%emt 0:00:00]} 37. R1d2 {[%emt 0:00:30]} Rd6 {[%emt 0:03:30]} 38. Kg2 {[%emt 0:01:23]} Kg6 {[%emt 0:02:30]} 39. Kf2 {[%emt 0:01:53]} Rf6+ {[%emt 0:03:30]} 40. Kg2 {[%emt 0:00:07]} Rf4 {[%emt 0:00:30]} 41. Re3 {[%emt 0:00:35]} Kf6 {[%emt 0:00:30]} 42. Red3 {[%emt 0:00:59]} Rd6 {[%emt 0:05:30]} 43. Rd1 {[%emt 0:00:56]} Kg6 {[%emt 0:00:30]} 44. Re3 {[%emt 0:00:32]} Kf6 {[%emt 0:09:11]} 45. Red3 {[%emt 0:00:54]} Kg7 {[%emt 0:02:00]} 46. R1d2 {[%emt 0:00:44]} Re4 {[%emt 0:01:11]} 47. Rf2 {[%emt 0:01:12]} f6 {[%emt 0:00:16]} 48. Rfd2 {[%emt 0:00:14]} Kf8 {[%emt 0:01:31]} 49. Kf2 {[%emt 0:02:19]} Ke7 {[%emt 0:00:10]} 50. Rd1 {[%emt 0:00:54]} f5 {[%emt 0:01:17]} 51. gxf5 {[%emt 0:01:15]} Nxf5 {[%emt 0:00:30]} 52. Bd5 {[%emt 0:00:05]} Rf4+ {[%emt 0:00:17]} 53. Kg1 {[%emt 0:00:13]} Rd7 {[%emt 0:01:15]} 54. Re1+ {[%emt 0:00:05]} Kd8 {[%emt 0:00:59]} 55. Red1 {[%emt 0:00:52]} Kc7 {[%emt 0:01:08]} 56. Rc1+ {[%emt 0:00:45]} Kb8 {[%emt 0:00:00]} 57. Rcd1 {[%emt 0:00:36]} Ka7 {[%emt 0:00:00]} 58. Bc4 {[%emt 0:01:20]} Nd4 {[%emt 0:00:00]} 59. Kg2 {[%emt 0:00:12]} h5 {[%emt 0:00:00]} 60. Rf1 {[%emt 0:00:20]} Re4 {[%emt 0:00:57]} 61. Rf8 {[%emt 0:00:21]} Rde7 {[%emt 0:01:04]} 62. Rd2 {[%emt 0:01:07]} g4 {[%emt 0:00:05]} 63. hxg4 {[%emt 0:00:08]} Rxg4+ {[%emt 0:00:37]} 64. Kf2 {[%emt 0:00:11]} h4 {[%emt 0:00:00]} 65. Bf1 {[%emt 0:01:02]} Ne6 {[%emt 0:01:18]} 66. Re2 {[%emt 0:00:49]} Rgg7 {[%emt 0:00:54]} 67. Rh8 {[%emt 0:00:19]} Ref7+ {[%emt 0:02:09]} 68. Ke1 {[%emt 0:00:10]} Nc5 {[%emt 0:04:13]} 69. Ree8 {[%emt 0:01:10]} Re7+ {[%emt 0:00:07]} 70. Rxe7 {[%emt 0:00:08]} Rxe7+ {[%emt 0:00:00]} 71. Kf2 {[%emt 0:00:04]} Rf7+ {[%emt 0:00:13]} 72. Kg2 {[%emt 0:00:52]} Rf4 {[%emt 0:00:02]} 73. Bc4 {[%emt 0:01:04]} Nxa4 {[%emt 0:00:05]} 74. Kh3 {[%emt 0:01:01]} Nb2 {[%emt 0:00:06]} 75. Bd5 {[%emt 0:00:07]} Rd4 {[%emt 0:00:27]} 76. Bh1 {[%emt 0:00:47]} Nd3 {[%emt 0:00:12]} 77. Rf8 {[%emt 0:00:16]} Nf4+ {[%emt 0:01:10]} 78. Kh2 {[%emt 0:00:04]} Rd2+ {[%emt 0:00:30]} 79. Kg1 {[%emt 0:00:05]} Ne2+ {[%emt 0:01:18]} 80. Kf2 {[%emt 0:00:10]} Ng3+ {[%emt 0:00:06]} 81. Ke1 {[%emt 0:00:36]} Re2+ {[%emt 0:00:12]} 82. Kd1 {[%emt 0:00:00]} Ra2 {[%emt 0:01:18]} 83. Bd5 {[%emt 0:00:06]} h3 {[%emt 0:00:52]} 84. Rf3 {[%emt 0:00:14]} Ra5 {[%emt 0:00:44]} 85. Ke1 {[%emt 0:01:12]} Rxd5 {[%emt 0:01:44]} 86. Rxg3 {[%emt 0:00:30]} Rh5 {[%emt 0:00:00]} 0-1

[Event "Turkish Second League 2019"]
[Site "Konya"]
[Date "2019.07.23"]
[Round "2"]
[White "Yilmazyerli, Mert"]
[Black "Darban, Morteza"]
[Result "1/2-1/2"]
[ECO "B38"]
[WhiteElo "2420"]
[BlackElo "2282"]
[Annotator "ChessBase"]
[PlyCount "144"]
[EventDate "2019.07.22"]
[EventType "team-tourn"]
[EventCountry "TUR"]
[SourceTitle "playchess.com"]
[Source "ChessBase"]
[SourceQuality "1"]
[TimeControl "5400+30"]

1. Nf3 {[%emt 0:02:30]} c5 {[%emt 0:00:30]} 2. e4 {[%emt 0:00:30]} Nc6 {[%emt 0:02:30]} 3. d4 {[%emt 0:06:30]} cxd4 {[%emt 0:00:30]} 4. Nxd4 {[%emt 0:00:30]} g6 {[%emt 0:00:30]} 5. c4 {[%emt 0:02:30]} Bg7 {[%emt 0:00:30]} 6. Be3 {[%emt 0:00:30]} Nf6 {[%emt 0:02:30]} 7. Nc3 {[%emt 0:00:30]} O-O {[%emt 0:02:30]} 8. Be2 {[%emt 0:01:30]} b6 {[%emt 0:00:30]} 9. O-O {[%emt 0:03:30]} Bb7 {[%emt 0:00:00]} 10. Nxc6 {[%emt 0:11:30]} Bxc6 {[%emt 0:02:00]} 11. f3 {[%emt 0:00:30]} e6 {[%emt 0:04:30]} 12. Qd6 {[%emt 0:06:30]} Ne8 {[%emt 0:04:30]} 13. Qd2 {[%emt 0:00:30]} Qe7 {[%emt 0:00:30]} 14. Rad1 {[%emt 0:05:30]} f5 {[%emt 0:01:30]} 15. exf5 {[%emt 0:02:30]} gxf5 {[%emt 0:00:30]} 16. f4 {[%emt 0:04:30]} Rc8 {[%emt 0:19:30]} 17. b3 {[%emt 0:10:30]} Qb4 {[%emt 0:22:30]} 18. Bd4 {[%emt 0:06:30]} Bxd4+ {[%emt 0:01:30]} 19. Qxd4 {[%emt 0:00:30]} Qc5 {[%emt 0:00:00]} 20. Bf3 {[%emt 0:03:30]} Nf6 {[%emt 0:02:00]} 21. Qxc5 {[%emt 0:02:30]} bxc5 {[%emt 0:00:00]} 22. Rd6 {[%emt 0:01:30]} Ne8 {[%emt 0:16:42]} 23. Rd3 {[%emt 0:07:45]} Rf7 {[%emt 0:01:04]} 24. Bxc6 {[%emt 0:03:08]} Rxc6 {[%emt 0:01:05]} 25. Rfd1 {[%emt 0:00:05]} d6 {[%emt 0:05:41]} 26. Re1 {[%emt 0:01:17]} Ng7 {[%emt 0:00:22]} 27. Kf2 {[%emt 0:00:16]} a6 {[%emt 0:00:36]} 28. Rg3 {[%emt 0:09:35]} Rf6 {[%emt 0:01:49]} 29. Rd1 {[%emt 0:01:19]} Rg6 {[%emt 0:02:50]} 30. Rxg6 {[%emt 0:02:57]} hxg6 {[%emt 0:00:21]} 31. h3 {[%emt 0:00:53]} Kf7 {[%emt 0:00:51]} 32. Kf3 {[%emt 0:00:29]} Ke7 {[%emt 0:00:31]} 33. g4 {[%emt 0:02:05]} Rc8 {[%emt 0:00:50]} 34. Kg3 {[%emt 0:00:01]} Ne8 {[%emt 0:01:29]} 35. Re1 {[%emt 0:00:49]} Kf7 {[%emt 0:01:06]} 36. Rd1 {[%emt 0:00:31]} Rd8 {[%emt 0:01:36]} 37. Rd3 {[%emt 0:01:25]} Nf6 {[%emt 0:00:49]} 38. Rd1 {[%emt 0:00:13]} Ke7 {[%emt 0:00:40]} 39. Re1 {[%emt 0:00:07]} Kf7 {[%emt 0:00:45]} 40. g5 {[%emt 0:00:59]} Nh5+ {[%emt 0:01:14]} 41. Kf3 {[%emt 0:00:07]} Rb8 {[%emt 0:00:24]} 42. Rb1 {[%emt 0:00:50]} Ke7 {[%emt 0:00:31]} 43. a3 {[%emt 0:00:26]} Kd7 {[%emt 0:00:29]} 44. b4 {[%emt 0:01:05]} cxb4 {[%emt 0:00:42]} 45. Rxb4 {[%emt 0:00:01]} Kc7 {[%emt 0:00:30]} 46. Ne2 {[%emt 0:00:31]} e5 {[%emt 0:00:13]} 47. fxe5 {[%emt 0:00:43]} dxe5 {[%emt 0:00:30]} 48. Nc3 {[%emt 0:00:00]} Rxb4 {[%emt 0:00:31]} 49. axb4 {[%emt 0:00:42]} Kd6 {[%emt 0:00:45]} 50. h4 {[%emt 0:00:55]} Nf4 {[%emt 0:00:26]} 51. Na4 {[%emt 0:00:43]} Ne6 {[%emt 0:00:24]} 52. Nc5 {[%emt 0:00:15]} Nd4+ {[%emt 0:00:57]} 53. Kf2 {[%emt 0:00:06]} f4 {[%emt 0:00:00]} 54. Nxa6 {[%emt 0:01:11]} e4 {[%emt 0:00:40]} 55. Nc5 {[%emt 0:00:00]} e3+ {[%emt 0:00:49]} 56. Kf1 {[%emt 0:00:06]} f3 {[%emt 0:00:28]} 57. Nd3 {[%emt 0:00:06]} Nf5 {[%emt 0:00:03]} 58. b5 {[%emt 0:01:22]} Nxh4 {[%emt 0:00:44]} 59. c5+ {[%emt 0:00:51]} Kc7 {[%emt 0:00:31]} 60. Ne5 {[%emt 0:00:35]} f2 {[%emt 0:00:23]} 61. Nc4 {[%emt 0:00:59]} Nf5 {[%emt 0:00:07]} 62. Kg2 {[%emt 0:00:00]} Kb8 {[%emt 0:00:58]} 63. Nxe3 {[%emt 0:00:37]} Nxe3+ {[%emt 0:00:30]} 64. Kxf2 {[%emt 0:00:00]} Nf5 {[%emt 0:00:29]} 65. Kf3 {[%emt 0:00:17]} Nd4+ {[%emt 0:00:55]} 66. Ke4 {[%emt 0:00:10]} Nxb5 {[%emt 0:00:07]} 67. Ke5 {[%emt 0:00:04]} Kc7 {[%emt 0:00:13]} 68. Kf6 {[%emt 0:00:30]} Nd4 {[%emt 0:00:30]} 69. Kxg6 {[%emt 0:00:00]} Ne6 {[%emt 0:00:00]} 70. Kf6 {[%emt 0:00:08]} Nxg5 {[%emt 0:00:08]} 71. Kxg5 {[%emt 0:00:30]} Kc6 {[%emt 0:00:00]} 72. Kh6 {[%emt 0:00:00]} Kxc5 {[%emt 0:00:00]} 1/2-1/2